bitfinex/quotes_BTCUSD_20250825
["timestamp","ask_amount","ask_price","bid_price","bid_amount"]
[1756157908226,0.02437241,110390.0,110380.0,0.37421126]
[1756157909129,0.02437241,110390.0,110380.0,0.36904126]
[1756157909787,0.02437241,110390.0,110380.0,0.37108126]
[1756157910027,0.07822764,110390.0,110380.0,0.36904126]
[1756157910235,0.57822764,110390.0,110380.0,0.36904126]
[1756157910440,5.07822764,110390.0,110380.0,0.35159224]
[1756157910642,0.07822764,110390.0,110380.0,0.35159224]
[1756157910761,0.52437241,110390.0,110380.0,0.35159224]
[1756157910967,5.52437241,110390.0,110380.0,0.35666224]
[1756157911164,0.01691431,110390.0,110380.0,0.35666224]
[1756157911376,0.5,110400.0,110390.0,0.18117583]
[1756157911584,5.51690577,110400.0,110390.0,0.34837583]
[1756157911790,0.21721762,110410.0,110400.0,0.18115942]
[1756157911999,0.5,110400.0,110390.0,0.34837583]
[1756157912362,5.20331402,110400.0,110390.0,0.16712]
[1756157912748,0.18117583,110390.0,110370.0,0.25092546]
[1756157912957,0.69199762,110380.0,110370.0,0.18120866]
[1756157913210,0.68120866,110370.0,110360.0,0.002]
[1756157913425,5.28498291,110370.0,110360.0,0.002]
[1756157913668,5.29023291,110370.0,110360.0,0.002]
[1756157913880,0.1812415,110350.0,110340.0,0.16928]
[1756157914093,0.18129079,110320.0,110310.0,0.06972]
[1756157914298,0.5,110310.0,110300.0,0.25379413]
[1756157914470,5.0,110310.0,110300.0,0.42307413]
[1756157914687,5.08686965,110310.0,110300.0,0.42307413]
[1756157914890,0.18129095,110320.0,110300.0,0.42307413]
[1756157915055,0.1982031,110320.0,110310.0,0.18130722]
[1756157915255,5.18333095,110320.0,110310.0,0.18130722]
[1756157915462,0.19351357,110350.0,110330.0,0.18127435]
[1756157915667,5.5,110340.0,110330.0,0.18127435]
[1756157915905,5.01690881,110340.0,110330.0,0.35550435]
[1756157916303,4.87338381,110340.0,110330.0,0.37295337]
[1756157916530,0.35030175,110380.0,110360.0,0.18122508]
[1756157916762,4.856475,110370.0,110360.0,0.18122508]
[1756157916982,4.8818311,110370.0,110360.0,0.35030508]
[1756157917457,0.02535641,110370.0,110360.0,0.20364703]
[1756157917686,5.10159788,110370.0,110360.0,0.35026508]
[1756157917894,5.06508007,110370.0,110360.0,0.34926508]
[1756157918104,4.88387141,110370.0,110360.0,0.34926508]
[1756157918306,4.88183141,110370.0,110360.0,0.34926508]
[1756157918514,4.88283141,110370.0,110360.0,0.34926508]
[1756157918748,4.88283141,110370.0,110360.0,0.35026508]
[1756157919191,4.92058911,110370.0,110360.0,0.35026508]
[1756157919419,0.01790407,110370.0,110360.0,0.3727841]
[1756157919640,0.01790407,110370.0,110360.0,0.4425041]
[1756157919869,0.01690407,110370.0,110360.0,0.4415041]
[1756157920144,0.01690407,110370.0,110360.0,0.4414241]
[1756157920571,0.53693849,110390.0,110380.0,0.18960126]
[1756157920787,0.02535394,110390.0,110380.0,0.34111224]
[1756157921003,0.52535403,110390.0,110380.0,0.34111224]
[1756157921202,0.53953476,110390.0,110380.0,0.34111224]
[1756157921699,0.53953476,110390.0,110380.0,0.36363126]
[1756157921950,0.03953476,110390.0,110380.0,0.17215224]
[1756157922170,5.39600976,110390.0,110380.0,0.34111224]
[1756157922400,4.89600976,110390.0,110380.0,0.34111224]
[1756157922623,4.88386903,110390.0,110380.0,0.34111224]
[1756157922831,0.18120866,110370.0,110360.0,0.06972]
[1756157923044,0.18120866,110370.0,110340.0,0.18123042]
[1756157923045,0.1812415,110350.0,110340.0,0.17036]
[1756157923257,5.05665913,110350.0,110340.0,0.17036]
[1756157923468,5.05986913,110350.0,110340.0,0.17036]
[1756157923684,0.18125793,110340.0,110330.0,0.06972]
[1756157923941,5.12985258,110340.0,110330.0,0.24028]
[1756157924146,4.856475,110340.0,110330.0,0.35183435]
[1756157924358,0.20852184,110360.0,110340.0,0.18125122]
[1756157924598,5.35930689,110350.0,110340.0,0.18125122]
[1756157924802,0.02726,110370.0,110360.0,0.18122508]
[1756157925018,4.927048,110370.0,110360.0,0.35178508]
[1756157925256,4.87338267,110370.0,110360.0,0.35178508]
[1756157925662,4.88756771,110370.0,110360.0,0.35178508]
[1756157926513,5.06877637,110370.0,110360.0,0.35178508]
[1756157926909,4.88756771,110370.0,110360.0,0.35178508]
[1756157927549,4.88756771,110370.0,110360.0,0.18122508]
[1756157928011,4.88756771,110370.0,110360.0,0.35142508]
[1756157928158,4.89603967,110370.0,110360.0,0.35142508]
[1756157928561,5.07724833,110370.0,110360.0,0.35142508]
[1756157928768,4.89603967,110370.0,110360.0,0.35142508]
[1756157929013,4.88756771,110370.0,110360.0,0.35649508]
[1756157929413,4.88756771,110370.0,110360.0,0.3739441]
[1756157929695,0.03109271,110370.0,110360.0,0.44647685]
[1756157929898,0.5,110380.0,110370.0,0.19865768]
[1756157930103,0.01898411,110380.0,110370.0,0.18120866]
[1756157930302,5.0569462,110380.0,110370.0,0.35136866]
[1756157930512,5.06512941,110380.0,110370.0,0.35136866]
[1756157930715,4.88393717,110380.0,110370.0,0.35136866]
[1756157932443,4.858515,110380.0,110370.0,0.18120866]
[1756157932650,4.858515,110380.0,110370.0,0.35144866]
[1756157932870,4.94538465,110380.0,110370.0,0.35144866]
[1756157933075,4.97080863,110380.0,110370.0,0.35144866]
[1756157933489,4.88030627,110380.0,110370.0,0.35144866]
[1756157933703,5.05302409,110380.0,110370.0,0.18120866]
[1756157933901,0.18120866,110370.0,110350.0,0.25094799]
[1756157934144,0.50555538,110360.0,110350.0,0.25094799]
[1756157934346,0.01695193,110360.0,110350.0,0.25094799]
[1756157934503,0.52250731,110360.0,110350.0,0.25094799]
[1756157934704,0.06920277,110360.0,110350.0,0.25094799]
[1756157934952,0.06920277,110360.0,110350.0,0.42078799]
[1756157934953,0.07475815,110360.0,110350.0,0.42078799]
[1756157935096,0.00555538,110360.0,110350.0,0.42078799]
[1756157935328,0.68676404,110370.0,110360.0,0.18121503]
[1756157935540,5.05502408,110370.0,110360.0,0.18121503]
[1756157935863,4.87567542,110370.0,110350.0,0.25294799]
[1756157936074,5.04166346,110360.0,110350.0,0.07172]
[1756157936274,5.14191015,110360.0,110350.0,0.241]
[1756157936453,5.14191015,110360.0,110350.0,0.17128]
[1756157936805,5.14377015,110360.0,110350.0,0.17128]
[1756157937162,5.14377015,110360.0,110350.0,0.17012]
[1756157937361,5.15795613,110360.0,110350.0,0.3513615]
[1756157937723,5.16643314,110360.0,110340.0,0.18125122]
[1756157937833,0.31155014,110360.0,110350.0,0.17012]
[1756157938040,5.07956349,110360.0,110350.0,0.17012]
[1756157939095,5.07770349,110360.0,110350.0,0.17012]
[1756157939309,5.07770349,110360.0,110340.0,0.18125122]
[1756157939490,5.0361245,110350.0,110340.0,0.18125122]
[1756157939720,5.05505692,110350.0,110340.0,0.35113122]
[1756157939916,5.14198657,110350.0,110340.0,0.35113122]
[1756157940335,0.18125793,110340.0,110320.0,0.54142213]
[1756157940552,0.18129962,110320.0,110310.0,0.18130722]
[1756157940764,0.19033806,110330.0,110310.0,0.35110722]
[1756157940975,5.53617379,110320.0,110310.0,0.35110722]
[1756157941191,5.05036434,110320.0,110310.0,0.35110722]
[1756157941406,5.05036434,110320.0,110310.0,0.18130722]
[1756157941647,0.18130722,110310.0,110300.0,0.25104366]
[1756157941882,0.19548134,110320.0,110310.0,0.18130722]
[1756157942106,0.18125852,110340.0,110320.0,0.18126378]
[1756157942340,5.36043838,110330.0,110320.0,0.18226378]
[1756157942561,5.36043838,110330.0,110320.0,0.18126378]
[1756157942562,5.03615735,110330.0,110320.0,0.18126378]
[1756157942780,4.94175265,110330.0,110320.0,0.35122378]
[1756157942989,4.854883,110330.0,110320.0,0.35122378]
[1756157943724,0.19540115,110370.0,110350.0,0.18123313]
[1756157943979,0.0459717,110370.0,110360.0,0.35106508]
[1756157944243,0.0459717,110370.0,110360.0,0.35599508]
[1756157944244,4.89449802,110370.0,110360.0,0.35599508]
[1756157944490,4.95870379,110370.0,110350.0,0.18123313]
[1756157944722,0.30190076,110370.0,110360.0,0.35126508]
[1756157944935,0.18122508,110360.0,110340.0,0.25095073]
[1756157945148,5.5381645,110350.0,110340.0,0.2398]
[1756157945359,0.18125793,110340.0,110330.0,0.18127435]
[1756157945572,5.05309207,110340.0,110330.0,0.35143435]
[1756157945802,5.05513207,110340.0,110330.0,0.35143435]
[1756157946290,0.01695114,110340.0,110330.0,0.35636435]
[1756157946501,0.20928873,110390.0,110370.0,0.18120866]
[1756157946718,5.54088636,110380.0,110370.0,0.1704]
[1756157946916,5.06983755,110380.0,110370.0,0.1704]
[1756157947129,5.07169755,110380.0,110370.0,0.1704]
[1756157947338,5.06983755,110380.0,110370.0,0.35160866]
[1756157947562,5.07889716,110380.0,110350.0,0.25094688]
[1756157947784,5.03609166,110370.0,110350.0,0.3524415]
[1756157948089,0.21299097,110370.0,110360.0,0.18122508]
[1756157948323,5.06985397,110370.0,110360.0,0.18122508]
[1756157948542,5.08403948,110370.0,110350.0,0.3524415]
[1756157948771,0.22915648,110370.0,110360.0,0.18122508]
[1756157948999,5.08404016,110370.0,110360.0,0.18122508]
[1756157949202,5.08404016,110370.0,110350.0,0.3524415]
[1756157949466,4.854883,110360.0,110350.0,0.3524415]
[1756157949690,4.87183393,110360.0,110350.0,0.3524415]
[1756157951921,5.05305901,110360.0,110350.0,0.3524415]
[1756157952134,4.87183393,110360.0,110350.0,0.3534415]
[1756157952334,4.87183393,110360.0,110350.0,0.3583715]
[1756157952556,5.14196866,110360.0,110350.0,0.001]
[1756157952770,5.15225479,110360.0,110350.0,0.17184]
[1756157953036,5.15861939,110360.0,110350.0,0.001]
[1756157953946,0.1812415,110350.0,110340.0,0.17108]
[1756157954155,5.06148003,110350.0,110340.0,0.17108]
[1756157954443,5.14834968,110350.0,110340.0,0.17108]
[1756157954668,0.18127435,110330.0,110320.0,0.25101079]
[1756157954895,5.03615735,110330.0,110320.0,0.42189079]
[1756157955109,4.854883,110330.0,110320.0,0.42189079]
[1756157955551,5.05034661,110330.0,110320.0,0.42189079]
[1756157955797,5.13721626,110330.0,110320.0,0.25101079]
[1756157956033,4.95594191,110330.0,110320.0,0.18129079]
[1756157956269,5.05034661,110330.0,110320.0,0.35205079]
[1756157956500,4.86907226,110330.0,110320.0,0.42951354]
[1756157956722,0.01418926,110330.0,110320.0,0.44696256]
[1756157956947,0.01418926,110330.0,110320.0,0.27620256]
[1756157957175,0.01418926,110330.0,110320.0,0.44832256]
[1756157957410,5.12804227,110330.0,110320.0,0.003]
[1756157957638,0.18130722,110310.0,110300.0,0.00295]
[1756157957878,0.68132366,110300.0,110290.0,0.06972]
[1756157958101,0.26819331,110300.0,110290.0,0.4241201]
[1756157958300,0.18132366,110300.0,110290.0,0.0717]
[1756157958560,0.19551542,110300.0,110290.0,0.4272301]
[1756157958785,0.01419176,110300.0,110290.0,0.4272301]
[1756157959021,0.01094176,110300.0,110290.0,0.27343912]
[1756157959247,0.18130722,110310.0,110290.0,0.4361771]
[1756157959515,0.19035627,110320.0,110310.0,0.18130722]
[1756157959745,0.20451189,110340.0,110320.0,0.18129079]
[1756157959978,0.18129079,110320.0,110310.0,0.18130722]
[1756157960201,0.18129079,110320.0,110310.0,0.17124]
[1756157960665,0.18333079,110320.0,110300.0,0.18427366]
[1756157960898,0.18129079,110320.0,110310.0,0.17124]
[1756157961357,0.18129079,110320.0,110310.0,0.17424]
[1756157961577,5.07537668,110320.0,110310.0,0.17124]
[1756157962027,0.18130722,110310.0,110300.0,0.003]
[1756157962258,0.68132366,110300.0,110290.0,0.06972]
[1756157962504,5.03620666,110300.0,110290.0,0.4225801]
[1756157962731,5.03824666,110300.0,110290.0,0.06972]
[1756157962951,5.12835631,110300.0,110290.0,0.06972]
[1756157963172,5.12835631,110300.0,110290.0,0.24124]
[1756157963433,0.18135498,110290.0,110270.0,0.18129813]
[1756157963687,0.00555538,110280.0,110270.0,0.18424813]
[1756157963902,0.19551716,110300.0,110290.0,0.1813401]
[1756157964130,0.6813401,110290.0,110280.0,0.18134205]
[1756157964368,5.0362231,110290.0,110270.0,0.18129813]
[1756157964613,0.01697739,110290.0,110280.0,0.35804654]
[1756157964830,4.87186039,110290.0,110280.0,0.35804654]
[1756157965475,4.854883,110290.0,110280.0,0.36004654]
[1756157965927,5.05319031,110290.0,110280.0,0.18828654]
[1756157966126,5.06738336,110290.0,110280.0,0.36105654]
[1756157966534,5.06738336,110290.0,110280.0,0.35905654]
[1756157966782,5.07249336,110290.0,110280.0,0.004]
[1756157966994,5.15936301,110290.0,110280.0,0.17548]
[1756157967448,5.15936301,110290.0,110280.0,0.17748]
[1756157967651,5.1392758,110290.0,110280.0,0.17748]
[1756157967855,5.15622707,110290.0,110280.0,0.17348]
[1756157968074,0.03114432,110290.0,110280.0,0.44983831]
[1756157968287,0.01094305,110290.0,110280.0,0.44987831]
[1756157968497,0.22095821,110310.0,110300.0,0.18132366]
[1756157968712,0.23790294,110310.0,110300.0,0.35284366]
[1756157968924,0.23082758,110310.0,110300.0,0.35284366]
[1756157969347,0.04752995,110310.0,110300.0,0.35284366]
[1756157969561,0.72883717,110310.0,110300.0,0.35485366]
[1756157969791,5.08372017,110310.0,110300.0,0.35485366]
[1756157970007,0.22883717,110310.0,110300.0,0.35284366]
[1756157970422,0.009067,110290.0,110260.0,0.06976]
[1756157970654,0.18137299,110270.0,110260.0,0.06976]
[1756157971119,5.03625599,110270.0,110260.0,0.24128]
[1756157971341,5.03824599,110270.0,110260.0,0.24128]
[1756157971779,5.04136599,110270.0,110260.0,0.06976]
[1756157972001,0.18138944,110260.0,110250.0,0.0004]
[1756157972225,5.03826244,110260.0,110250.0,0.17212]
[1756157972480,5.04138244,110260.0,110250.0,0.0004]
[1756157972929,5.04138244,110260.0,110250.0,0.17216]
[1756157973849,5.04138244,110260.0,110250.0,0.0004]
[1756157974055,5.12825209,110260.0,110250.0,0.17216]
[1756157974701,5.12925209,110260.0,110250.0,0.0004]
[1756157974907,5.12925209,110260.0,110250.0,0.17192]
[1756157975117,5.03926244,110260.0,110250.0,0.17192]
[1756157975329,5.03727244,110260.0,110250.0,0.17192]
[1756157975544,5.04238244,110260.0,110250.0,0.17212]
[1756157975750,5.05658164,110260.0,110250.0,0.17208]
[1756157975954,5.14345129,110260.0,110250.0,0.1722]
[1756157976424,5.05658164,110260.0,110250.0,0.1722]
[1756157976626,5.05147164,110260.0,110250.0,0.1722]
[1756157977264,0.0151992,110260.0,110250.0,0.35862589]
[1756157977492,0.0141992,110260.0,110250.0,0.44860766]
[1756157978132,0.5,110280.0,110270.0,0.18137299]
[1756157978344,0.5,110270.0,110250.0,0.0044]
[1756157978557,0.68694482,110260.0,110250.0,0.0044]
[1756157978783,0.18138944,110260.0,110250.0,0.1728]
[1756157978998,0.18138944,110260.0,110250.0,0.17972]
[1756157979217,0.18138944,110260.0,110250.0,0.36112589]
[1756157979428,0.18137299,110270.0,110250.0,0.36313589]
[1756157979634,5.37191435,110260.0,110250.0,0.36313589]
[1756157979846,0.01419714,110260.0,110250.0,0.36313589]
[1756157980122,0.51419714,110260.0,110250.0,0.36614589]
[1756157980331,5.36908014,110260.0,110250.0,0.37859491]
[1756157980540,0.01419714,110260.0,110250.0,0.38059491]
[1756157980750,0.01419714,110260.0,110250.0,0.37859491]
[1756157980958,0.51419714,110260.0,110250.0,0.37859491]
[1756157981158,5.60755483,110260.0,110250.0,0.35716589]
[1756157981374,0.25267183,110260.0,110250.0,0.35716589]
[1756157981603,0.06617239,110260.0,110250.0,0.35416589]
[1756157981787,0.51419714,110260.0,110250.0,0.35816589]
[1756157982001,5.354883,110260.0,110250.0,0.36016589]
[1756157982200,5.03627244,110260.0,110250.0,0.35616589]
[1756157982405,0.18138944,110260.0,110250.0,0.35616589]
[1756157982832,0.18337944,110260.0,110250.0,0.0024]
[1756157983046,5.41816977,110260.0,110250.0,0.17476]
[1756157983252,5.41816977,110260.0,110250.0,0.0004]
[1756157983458,5.41816977,110260.0,110250.0,0.0014]
[1756157983668,5.43509098,110260.0,110250.0,0.0014]
[1756157983886,5.60741098,110260.0,110250.0,0.0014]
[1756157984118,5.60741098,110260.0,110250.0,0.0024]
[1756157984339,5.60741098,110260.0,110250.0,0.0004]
[1756157985017,5.70741098,110260.0,110250.0,0.0004]
[1756157985272,5.70941098,110260.0,110250.0,1e-08]
[1756157985495,5.71044779,110260.0,110250.0,1e-08]
[1756157985934,5.72464963,110260.0,110250.0,1e-08]
[1756157986649,5.70138161,110260.0,110250.0,1e-08]
[1756157986847,5.72465459,110260.0,110250.0,1e-08]
[1756157987470,5.72565707,110260.0,110250.0,1e-08]
[1756157989423,5.89310609,110260.0,110250.0,1e-08]
[1756157989845,5.89675738,110260.0,110250.0,1e-08]
[1756157990266,5.72463738,110260.0,110250.0,1e-08]
[1756157990488,5.07476103,110260.0,110250.0,1e-08]
[1756157990911,5.41976103,110260.0,110250.0,1e-08]
[1756157991112,5.41876103,110260.0,110250.0,1e-08]
[1756157991320,5.52076103,110260.0,110250.0,1e-08]
[1756157991533,5.42076103,110260.0,110250.0,1e-08]
[1756157991951,5.41876103,110260.0,110250.0,1e-08]
[1756157992162,5.07441138,110260.0,110250.0,0.1814059]
[1756157992575,5.06941138,110260.0,110250.0,1e-08]
[1756157992785,5.07041138,110260.0,110250.0,1e-08]
[1756157992994,5.15628103,110260.0,110250.0,1e-08]
[1756157993205,5.67504028,110260.0,110250.0,1e-08]
[1756157993408,5.67304028,110260.0,110250.0,0.00100001]
[1756157993609,5.44691545,110260.0,110250.0,1e-08]
[1756157994025,5.44591545,110260.0,110250.0,0.00100001]
[1756157994252,5.44591545,110260.0,110250.0,1e-08]
[1756157994421,5.44791545,110260.0,110250.0,1e-08]
[1756157994941,5.1866458,110260.0,110250.0,1e-08]
[1756157995188,4.99889694,110260.0,110250.0,0.1814059]
[1756157995431,5.19513233,110260.0,110250.0,0.1814059]
[1756157995665,5.19813233,110260.0,110250.0,0.1814059]
[1756157995928,4.82699339,110260.0,110250.0,0.1814059]
[1756157996162,4.86535278,110260.0,110250.0,0.1814059]
[1756157996401,4.87171661,110260.0,110250.0,0.1814059]
[1756157996694,4.82499581,110260.0,110250.0,1e-08]
[1756157996945,4.82499559,110260.0,110250.0,1e-08]
[1756157997344,4.83919506,110260.0,110250.0,1e-08]
[1756157997550,4.83819506,110260.0,110250.0,0.00200001]
[1756157997786,5.26506471,110260.0,110250.0,0.00200001]
[1756157998211,5.43702471,110260.0,110250.0,0.00200001]
[1756157998552,5.45657659,110260.0,110250.0,1e-08]
[1756157999168,5.55657659,110260.0,110250.0,1e-08]
[1756157999392,5.7065804,110260.0,110250.0,1e-08]
[1756157999568,5.70758468,110260.0,110250.0,1e-08]
[1756157999954,5.70658468,110260.0,110250.0,1e-08]
[1756158000189,5.71322468,110260.0,110250.0,1e-08]
[1756158000416,0.62142235,110240.0,110230.0,0.0004]
[1756158000628,5.25090196,110240.0,110230.0,0.0004]
[1756158000887,5.16403231,110240.0,110230.0,0.0004]
[1756158001119,4.97412161,110240.0,110230.0,0.1818388]
[1756158001346,4.6483234,110240.0,110230.0,0.1818388]
[1756158001572,4.82974575,110240.0,110230.0,0.0004]
[1756158001844,5.16974575,110240.0,110230.0,0.0004]
[1756158003129,5.17923633,110240.0,110230.0,0.0004]
[1756158003352,5.35167347,110240.0,110230.0,0.0004]
[1756158003579,5.35067347,110240.0,110230.0,0.0004]
[1756158003806,5.35067347,110240.0,110230.0,0.0024]
[1756158004019,5.43754312,110240.0,110230.0,0.0024]
[1756158004296,4.65681112,110240.0,110230.0,0.1838388]
[1756158004535,0.01420179,110240.0,110230.0,0.20228782]
[1756158004722,0.00647421,110260.0,110250.0,0.18140589]
[1756158004968,4.99479404,110260.0,110250.0,0.35380589]
[1756158005185,4.64624271,110260.0,110250.0,0.35380589]
[1756158005597,4.65407855,110260.0,110250.0,0.35380589]
[1756158005864,4.64195661,110260.0,110250.0,0.35380589]
[1756158006075,0.01419861,110260.0,110250.0,0.35380589]
[1756158006288,0.51419861,110260.0,110250.0,0.35380589]
[1756158006500,5.14195661,110260.0,110250.0,0.35280589]
[1756158006715,0.10106826,110260.0,110250.0,0.35280589]
[1756158006932,4.82618026,110260.0,110250.0,0.18040589]
[1756158007162,4.64831868,110260.0,110250.0,0.18240589]
[1756158007381,4.83819104,110260.0,110250.0,0.18240589]
[1756158007586,4.83819104,110260.0,110250.0,0.18740589]
[1756158007793,4.85515796,110260.0,110250.0,0.18740589]
[1756158007996,4.94202761,110260.0,110250.0,0.18740589]
[1756158008210,4.94202761,110260.0,110250.0,0.007]
[1756158009249,4.94202761,110260.0,110250.0,0.005]
[1756158009369,4.85515796,110260.0,110240.0,0.42332775]
[1756158009595,4.63331338,110250.0,110240.0,0.42332775]
[1756158009798,4.64472456,110250.0,110240.0,0.42332775]
[1756158010224,4.64472456,110250.0,110240.0,0.42312775]
[1756158010565,4.73159421,110250.0,110240.0,0.42312775]
[1756158010775,4.64472456,110250.0,110240.0,0.42312775]
[1756158010970,4.64473768,110250.0,110240.0,0.42612775]
[1756158011790,4.64473768,110250.0,110240.0,0.42812775]
[1756158011956,4.82614357,110250.0,110240.0,0.42812775]
[1756158012139,4.82614357,110250.0,110240.0,0.25620775]
[1756158012350,4.82614357,110250.0,110240.0,0.42804775]
[1756158012567,5.16614357,110250.0,110240.0,0.005]
[1756158013211,5.17251491,110250.0,110240.0,0.005]
[1756158013432,5.17251491,110250.0,110240.0,0.003]
[1756158013633,0.18142235,110240.0,110230.0,0.17248]
[1756158013838,0.18142235,110240.0,110230.0,0.17236]
[1756158013839,4.82616003,110240.0,110230.0,0.17236]
[1756158014016,4.80918035,110240.0,110230.0,0.17236]
[1756158014218,4.82617506,110240.0,110230.0,0.0004]
[1756158014968,4.82617547,110240.0,110230.0,0.0004]
[1756158015170,5.25304512,110240.0,110230.0,0.0004]
[1756158015309,5.43125793,110240.0,110230.0,0.0004]
[1756158015713,5.44546081,110240.0,110230.0,0.0004]
[1756158015921,5.44546081,110240.0,110230.0,0.0024]
[1756158015922,5.46504292,110240.0,110230.0,0.0024]
[1756158016122,5.61504292,110240.0,110230.0,0.0014]
[1756158016331,5.44578081,110240.0,110230.0,0.0014]
[1756158016519,5.44778081,110240.0,110230.0,0.0014]
[1756158016714,5.44578081,110240.0,110230.0,0.0004]
[1756158016916,5.18137835,110240.0,110230.0,0.0004]
[1756158017556,5.18137835,110240.0,110230.0,0.3539188]
[1756158017759,4.659956,110240.0,110230.0,0.3539188]
[1756158018127,4.659956,110240.0,110230.0,0.37136782]
[1756158018358,4.999956,110240.0,110230.0,0.37136782]
[1756158018937,4.999956,110240.0,110230.0,0.37236782]
[1756158019179,4.999956,110240.0,110230.0,0.37136782]
[1756158019511,4.658956,110240.0,110230.0,0.37536782]
[1756158019911,4.659956,110240.0,110230.0,0.37536782]
[1756158020362,4.658956,110240.0,110230.0,0.37536782]
[1756158020814,0.031198,110240.0,110230.0,0.37836782]
[1756158021225,4.88304525,110240.0,110230.0,0.0074]
[1756158021430,5.21748987,110240.0,110230.0,0.0044]
[1756158021644,5.21748987,110240.0,110230.0,0.0034]
[1756158022064,5.21748987,110240.0,110230.0,0.0084]
[1756158022286,5.21748987,110240.0,110230.0,0.0034]
[1756158022494,5.21748987,110240.0,110230.0,0.0054]
[1756158022495,5.20328699,110240.0,110230.0,0.0054]
[1756158022841,5.20328699,110240.0,110230.0,0.0004]
[1756158023043,5.20328699,110240.0,110230.0,0.0014]
[1756158023251,5.20328699,110240.0,110230.0,0.0034]
[1756158023449,5.18630015,110240.0,110230.0,0.0034]
[1756158023681,5.20329486,110240.0,110230.0,0.0014]
[1756158024083,5.21749695,110240.0,110230.0,0.0014]
[1756158024281,5.16338244,110240.0,110230.0,0.0014]
[1756158024522,5.18037891,110240.0,110230.0,0.1828388]
[1756158026284,5.18037891,110240.0,110230.0,0.0014]
[1756158026900,5.18037891,110240.0,110230.0,0.17392]
[1756158027734,5.18037891,110240.0,110230.0,0.17384]
[1756158027940,5.26724856,110240.0,110230.0,0.17384]
[1756158028981,5.29454256,110240.0,110230.0,0.17384]
[1756158029191,5.29454256,110240.0,110230.0,0.0014]
[1756158029612,4.98196009,110240.0,110230.0,0.1828388]
[1756158029989,4.64196009,110240.0,110230.0,0.1828388]
[1756158030811,4.64196009,110240.0,110230.0,0.1838388]
[1756158031659,4.64196009,110240.0,110230.0,0.1828388]
[1756158031862,4.64196009,110240.0,110230.0,0.1848388]
[1756158032244,4.64196009,110240.0,110230.0,0.1828388]
[1756158032458,4.64196009,110240.0,110230.0,0.1858388]
[1756158032621,4.72882974,110240.0,110230.0,0.1848388]
[1756158032827,4.72882974,110240.0,110230.0,0.1868388]
[1756158033179,4.71462765,110240.0,110230.0,0.1868388]
[1756158034209,4.627758,110240.0,110230.0,0.1868388]
[1756158035420,5.27752586,110240.0,110230.0,0.1868388]
[1756158036497,0.66396744,110240.0,110230.0,0.1868388]
[1756158040640,0.66396744,110240.0,110230.0,0.20428782]
[1756158041666,0.66396744,110240.0,110230.0,0.37480782]
[1756158041902,0.66396744,110240.0,110230.0,0.20428782]
[1756158042154,0.66396744,110240.0,110230.0,0.37480782]
[1756158042854,0.01419958,110240.0,110230.0,0.37476782]
[1756158043279,0.66396744,110240.0,110230.0,0.37476782]
[1756158043525,0.64976786,110240.0,110230.0,0.37476782]
[1756158043731,0.027289,110260.0,110250.0,0.18140589]
[1756158043914,5.32737769,110260.0,110250.0,0.35164589]
[1756158046426,5.54985817,110260.0,110250.0,0.35164589]
[1756158047178,5.50321012,110260.0,110250.0,0.35164589]
[1756158047400,5.50321012,110260.0,110250.0,0.35364589]
[1756158048063,5.50321012,110260.0,110250.0,0.35464589]
[1756158049214,5.32182068,110260.0,110250.0,0.35464589]
[1756158049672,5.32182068,110260.0,110250.0,0.34560589]
[1756158050160,5.32182068,110260.0,110250.0,0.33471989]
[1756158050391,5.59007977,110260.0,110250.0,0.003]
[1756158050613,5.59007977,110260.0,110250.0,0.17264]
[1756158051075,5.59007977,110260.0,110250.0,0.1732]
[1756158051707,5.59007977,110260.0,110250.0,0.1722]
[1756158051912,5.59007977,110260.0,110250.0,0.1702]
[1756158052115,0.18140589,110250.0,110230.0,0.1818388]
[1756158052317,1.15532324,110240.0,110230.0,0.19928782]
[1756158052518,5.45894821,110240.0,110230.0,0.1818388]
[1756158052730,5.45894821,110240.0,110230.0,0.3517988]
[1756158052935,5.47314798,110240.0,110230.0,0.3517988]
[1756158053496,5.29172563,110240.0,110230.0,0.3517988]
[1756158053695,5.37859528,110240.0,110230.0,0.3517988]
[1756158055131,4.64195777,110240.0,110230.0,0.3527988]
[1756158055343,0.66396763,110240.0,110230.0,0.37024782]
[1756158055561,0.64976786,110240.0,110230.0,0.37224782]
[1756158058681,0.66396697,110240.0,110230.0,0.37224782]
[1756158061478,0.01419911,110240.0,110230.0,0.37224782]
[1756158061679,0.66396697,110240.0,110230.0,0.37224782]
[1756158062426,0.64976786,110240.0,110230.0,0.37024782]
[1756158062669,0.64976786,110240.0,110230.0,0.37224782]
[1756158063056,0.64976786,110240.0,110230.0,0.37024782]
[1756158063258,0.64976786,110240.0,110230.0,0.36924782]
[1756158063434,0.68807517,110240.0,110230.0,0.37524782]
[1756158063636,0.68807517,110240.0,110230.0,0.20628782]
[1756158064043,0.68807517,110240.0,110230.0,0.37412782]
[1756158064213,0.03830731,110240.0,110230.0,0.37408782]
[1756158064419,0.65532324,110240.0,110230.0,0.37808782]
[1756158064616,0.18140651,110250.0,110240.0,0.18142235]
[1756158065687,0.68142235,110240.0,110230.0,0.0024]
[1756158065849,6.10871607,110240.0,110230.0,0.1712]
[1756158066049,6.21261734,110240.0,110230.0,0.1712]
[1756158066314,5.56284948,110240.0,110230.0,0.1712]
[1756158066511,5.59014148,110240.0,110230.0,0.1692]
[1756158067276,5.59013749,110240.0,110230.0,0.1692]
[1756158068910,5.57310986,110240.0,110230.0,0.1692]
[1756158070798,5.57310986,110240.0,110230.0,0.0004]
[1756158070997,5.57310986,110240.0,110230.0,0.16876]
[1756158072255,5.57310986,110240.0,110230.0,0.16864]
[1756158072675,5.57310986,110240.0,110230.0,0.16733841]
[1756158072880,5.60501081,110240.0,110230.0,0.16733841]
[1756158073289,0.18147173,110210.0,110200.0,0.39964691]
[1756158073492,0.86753378,110210.0,110200.0,0.34960691]
[1756158074112,0.89030451,110210.0,110200.0,0.34960691]
[1756158074558,0.89030451,110210.0,110200.0,0.35660691]
[1756158074964,0.89030451,110210.0,110200.0,0.17512]
[1756158075594,5.51806251,110210.0,110200.0,0.17512]
[1756158075788,5.51806251,110210.0,110200.0,0.007]
[1756158076019,0.1814882,110200.0,110190.0,0.0004]
[1756158076220,5.71388371,110200.0,110190.0,0.0004]
[1756158076444,6.36365157,110200.0,110190.0,0.0004]
[1756158076836,0.18150467,110190.0,110170.0,0.0004]
[1756158077047,0.1906387,110170.0,110160.0,0.00307766]
[1756158077252,6.20480207,110170.0,110160.0,0.00307766]
[1756158077415,6.40019407,110170.0,110160.0,0.00307766]
[1756158077645,6.4144044,110170.0,110160.0,0.00307766]
[1756158078053,0.17849292,110150.0,110140.0,0.16808]
[1756158078283,0.68158707,110140.0,110130.0,0.25180303]
[1756158078459,0.18158707,110140.0,110130.0,0.23816]